[Event "December 5 Early 2023"]
[Site "https://www.chess.com"]
[Date "2023.12.05"]
[Round "10"]
[White "Papasimakopoulos, Alexandros"]
[Black "NovakRatko"]
[Result "1-0"]
[Board "82"]
[TimeControl "180+1"]
[WhiteFideId "4244125"]
[WhiteElo "2638"]
[BlackElo "2475"]
[WhiteTeam "GRE"]
[WhiteClock "0:00:20"]
[BlackClock "0:00:08"]

1. d4 {[%clk 0:03:00]}  d5 {[%clk 0:02:59]} 2. c4 {[%clk 0:02:57]}  c5 {[%clk 0:03:00]} 3. cxd5 {[%clk 0:02:53]}  Qxd5 {[%clk 0:03:00]} 4. Nf3 {[%clk 0:02:50]}  cxd4 {[%clk 0:03:00]} 5. Nc3 {[%clk 0:02:50]}  Qa5 {[%clk 0:03:00]} 6. Nxd4 {[%clk 0:02:47]}  e5 {[%clk 0:03:01]} 7. Nb3 {[%clk 0:02:44]}  Qc7 {[%clk 0:03:01]} 8. Nd5 {[%clk 0:02:38]}  Qd6 {[%clk 0:03:00]} 9. e4 {[%clk 0:02:36]}  Nf6 {[%clk 0:03:00]} 10. Bb5+ {[%clk 0:02:30]}  Nc6 {[%clk 0:02:59]} 11. Nxf6+ {[%clk 0:02:17]}  Qxf6 {[%clk 0:02:57]} 12. O-O {[%clk 0:02:15]}  Be7 {[%clk 0:02:49]} 13. Na5 {[%clk 0:02:10]}  O-O {[%clk 0:02:44]} 14. Nxc6 {[%clk 0:02:07]}  bxc6 {[%clk 0:02:44]} 15. Bc4 {[%clk 0:02:07]}  Rd8 {[%clk 0:02:41]} 16. Qe2 {[%clk 0:02:06]}  Bc5 {[%clk 0:02:40]} 17. Be3 {[%clk 0:02:02]}  Bb6 {[%clk 0:02:40]} 18. Rac1 {[%clk 0:01:59]}  Be6 {[%clk 0:02:39]} 19. b3 {[%clk 0:01:56]}  Bd4 {[%clk 0:02:39]} 20. Bd2 {[%clk 0:01:43]}  c5 {[%clk 0:02:39]} 21. Bxe6 {[%clk 0:01:35]}  Qxe6 {[%clk 0:02:37]} 22. Rc2 {[%clk 0:01:35]}  a5 {[%clk 0:02:35]} 23. h3 {[%clk 0:01:29]}  a4 {[%clk 0:02:34]} 24. b4 {[%clk 0:01:29]}  cxb4 {[%clk 0:02:26]} 25. Bxb4 {[%clk 0:01:30]}  Rdc8 {[%clk 0:02:18]} 26. a3 {[%clk 0:01:27]}  f5 {[%clk 0:02:16]} 27. Rfc1 {[%clk 0:01:19]}  Rxc2 {[%clk 0:02:13]} 28. Qxc2 {[%clk 0:01:13]}  fxe4 {[%clk 0:02:01]} 29. Qxe4 {[%clk 0:01:10]}  Rc8 {[%clk 0:01:52]} 30. Rc2 {[%clk 0:00:56]}  Rxc2 {[%clk 0:01:48]} 31. Qxc2 {[%clk 0:00:56]}  Qb3 {[%clk 0:01:27]} 32. Qc8+ {[%clk 0:00:54]}  Kf7 {[%clk 0:01:27]} 33. Qf5+ {[%clk 0:00:45]}  Ke8 {[%clk 0:01:23]} 34. Qxh7 {[%clk 0:00:36]}  Qd1+ {[%clk 0:01:20]} 35. Kh2 {[%clk 0:00:36]}  Qe2 {[%clk 0:01:01]} 36. Qg8+ {[%clk 0:00:35]}  Kd7 {[%clk 0:01:00]} 37. Qxg7+ {[%clk 0:00:34]}  Ke6 {[%clk 0:01:00]} 38. Qg4+ {[%clk 0:00:33]}  Qxg4 {[%clk 0:00:59]} 39. hxg4 {[%clk 0:00:33]}  Bxf2 {[%clk 0:01:00]} 40. g3 {[%clk 0:00:30]}  e4 {[%clk 0:00:54]} 41. Kg2 {[%clk 0:00:30]}  Bd4 {[%clk 0:00:52]} 42. Bd2 {[%clk 0:00:23]}  Bc5 {[%clk 0:00:50]} 43. Bc1 {[%clk 0:00:21]}  Ke5 {[%clk 0:00:50]} 44. Kf1 {[%clk 0:00:20]}  Kd4 {[%clk 0:00:50]} 45. Ke2 {[%clk 0:00:20]}  Bd6 {[%clk 0:00:47]} 46. g5 {[%clk 0:00:18]}  Kd5 {[%clk 0:00:32]} 47. Bb2 {[%clk 0:00:18]}  Bxg3 {[%clk 0:00:28]} 48. g6 {[%clk 0:00:17]}  Ke6 {[%clk 0:00:27]} 49. Ke3 {[%clk 0:00:17]}  Bh4 {[%clk 0:00:16]} 50. Kxe4 {[%clk 0:00:17]}  Bf6 {[%clk 0:00:16]} 51. Bc1 {[%clk 0:00:17]}  Be7 {[%clk 0:00:14]} 52. Kd3 {[%clk 0:00:16]}  Kf6 {[%clk 0:00:12]} 53. Bg5+ {[%clk 0:00:16]}  Ke6 {[%clk 0:00:08]} 54. Bxe7 {[%clk 0:00:16]}  Kxe7 {[%clk 0:00:08]} 55. Kc4 {[%clk 0:00:17]}  Ke6 {[%clk 0:00:09]} 56. Kb5 {[%clk 0:00:17]}  Kf6 {[%clk 0:00:09]} 57. Kxa4 {[%clk 0:00:18]}  Kxg6 {[%clk 0:00:10]} 58. Kb5 {[%clk 0:00:18]}  Kf6 {[%clk 0:00:11]} 59. Kc6 {[%clk 0:00:19]}  Ke7 {[%clk 0:00:11]} 60. a4 {[%clk 0:00:18]}  Kd8 {[%clk 0:00:11]} 61. Kb7 {[%clk 0:00:19]}  Kd7 {[%clk 0:00:08]} 62. a5 {[%clk 0:00:20]} 1-0

[Event "December 5 Early 2023"]
[Site "https://www.chess.com"]
[Date "2023.12.05"]
[Round "10"]
[White "Kazmaier, Daniel"]
[Black "Saravana, Krishnan P."]
[Result "0-1"]
[Board "85"]
[TimeControl "180+1"]
[WhiteFideId "2606089"]
[BlackFideId "5018382"]
[WhiteElo "2451"]
[BlackElo "2550"]
[WhiteTeam "CAN"]
[BlackTeam "IND"]
[WhiteClock "0:00:11"]
[BlackClock "0:00:18"]

1. d4 {[%clk 0:02:58]}  Nf6 {[%clk 0:02:58]} 2. Bg5 {[%clk 0:02:58]}  Ne4 {[%clk 0:02:56]} 3. Bf4 {[%clk 0:02:58]}  e6 {[%clk 0:02:56]} 4. f3 {[%clk 0:02:56]}  Bd6 {[%clk 0:02:56]} 5. fxe4 {[%clk 0:02:44]}  Bxf4 {[%clk 0:02:54]} 6. Nf3 {[%clk 0:02:45]}  O-O {[%clk 0:02:50]} 7. g3 {[%clk 0:02:40]}  Be3 {[%clk 0:02:45]} 8. Nc3 {[%clk 0:02:37]}  c5 {[%clk 0:02:40]} 9. d5 {[%clk 0:02:33]}  exd5 {[%clk 0:02:32]} 10. Nxd5 {[%clk 0:02:27]}  Bh6 {[%clk 0:02:31]} 11. Bg2 {[%clk 0:02:25]}  d6 {[%clk 0:02:30]} 12. O-O {[%clk 0:02:22]}  Nc6 {[%clk 0:02:30]} 13. c3 {[%clk 0:02:19]}  Be6 {[%clk 0:02:25]} 14. Nh4 {[%clk 0:02:18]}  Ne5 {[%clk 0:02:07]} 15. Nf5 {[%clk 0:02:16]}  Bg5 {[%clk 0:01:56]} 16. Qb3 {[%clk 0:01:59]}  g6 {[%clk 0:01:50]} 17. h4 {[%clk 0:01:44]}  gxf5 {[%clk 0:01:29]} 18. hxg5 {[%clk 0:01:43]}  Qxg5 {[%clk 0:01:26]} 19. exf5 {[%clk 0:01:33]}  Bxd5 {[%clk 0:01:22]} 20. Qxd5 {[%clk 0:01:29]}  Kh8 {[%clk 0:01:17]} 21. Qxd6 {[%clk 0:01:25]}  f6 {[%clk 0:01:16]} 22. Rad1 {[%clk 0:01:14]}  Qxg3 {[%clk 0:01:14]} 23. Rd3 {[%clk 0:01:14]}  Qg5 {[%clk 0:01:06]} 24. Rh3 {[%clk 0:01:04]}  Rg8 {[%clk 0:01:03]} 25. Rf2 {[%clk 0:01:03]}  Rg7 {[%clk 0:00:49]} 26. Kh1 {[%clk 0:00:43]}  Rag8 {[%clk 0:00:34]} 27. Qxc5 {[%clk 0:00:41]}  Ng4 {[%clk 0:00:33]} 28. Bf1 {[%clk 0:00:19]}  Nxf2+ {[%clk 0:00:17]} 29. Qxf2 {[%clk 0:00:19]}  Rd8 {[%clk 0:00:17]} 30. Kh2 {[%clk 0:00:17]}  Rd1 {[%clk 0:00:16]} 31. b3 {[%clk 0:00:09]}  Qg4 {[%clk 0:00:15]} 32. c4 {[%clk 0:00:08]}  h5 {[%clk 0:00:15]} 33. c5 {[%clk 0:00:08]}  Kh7 {[%clk 0:00:15]} 34. b4 {[%clk 0:00:08]}  Rd4 {[%clk 0:00:13]} 35. b5 {[%clk 0:00:09]}  Rf4 {[%clk 0:00:12]} 36. Qg2 {[%clk 0:00:08]}  Qxf5 {[%clk 0:00:12]} 37. Rf3 {[%clk 0:00:06]}  Rxg2+ {[%clk 0:00:11]} 38. Bxg2 {[%clk 0:00:06]}  Rxf3 {[%clk 0:00:12]} 39. Bxf3 {[%clk 0:00:06]}  Qxc5 {[%clk 0:00:12]} 40. Be4+ {[%clk 0:00:05]}  Kg7 {[%clk 0:00:12]} 41. Bd3 {[%clk 0:00:06]}  Qe5+ {[%clk 0:00:13]} 42. Kg2 {[%clk 0:00:06]}  b6 {[%clk 0:00:13]} 43. Kh3 {[%clk 0:00:07]}  h4 {[%clk 0:00:14]} 44. Kxh4 {[%clk 0:00:07]}  Qf4+ {[%clk 0:00:14]} 45. Kh3 {[%clk 0:00:07]}  f5 {[%clk 0:00:14]} 46. Kg2 {[%clk 0:00:08]}  Qg4+ {[%clk 0:00:15]} 47. Kf2 {[%clk 0:00:09]}  f4 {[%clk 0:00:16]} 48. Ke1 {[%clk 0:00:09]}  Qg3+ {[%clk 0:00:16]} 49. Kd2 {[%clk 0:00:10]}  Kf6 {[%clk 0:00:17]} 50. Kc3 {[%clk 0:00:10]}  Ke5 {[%clk 0:00:18]} 51. Kc4 {[%clk 0:00:10]}  Qe3 {[%clk 0:00:18]} 52. a4 {[%clk 0:00:11]}  f3 {[%clk 0:00:19]} 53. Kb3 {[%clk 0:00:11]}  fxe2 {[%clk 0:00:18]} 0-1

[Event "December 5 Early 2023"]
[Site "https://www.chess.com"]
[Date "2023.12.05"]
[Round "10"]
[White "Erzhanov, Arman"]
[Black "Kiremitciyan, Ari"]
[Result "1/2-1/2"]
[Board "86"]
[TimeControl "180+1"]
[WhiteFideId "4138821"]
[BlackFideId "6373445"]
[WhiteElo "2548"]
[BlackElo "2420"]
[WhiteTeam "KAZ"]
[BlackTeam "TUR"]
[WhiteClock "0:00:44"]
[BlackClock "0:01:16"]

1. e4 {[%clk 0:02:58]}  c6 {[%clk 0:02:59]} 2. d4 {[%clk 0:02:55]}  d5 {[%clk 0:03:00]} 3. exd5 {[%clk 0:02:56]}  cxd5 {[%clk 0:03:01]} 4. Bd3 {[%clk 0:02:56]}  Nf6 {[%clk 0:03:01]} 5. h3 {[%clk 0:02:56]}  Nc6 {[%clk 0:03:00]} 6. c3 {[%clk 0:02:57]}  g6 {[%clk 0:03:00]} 7. Nf3 {[%clk 0:02:56]}  Bf5 {[%clk 0:03:00]} 8. Be2 {[%clk 0:02:56]}  Bg7 {[%clk 0:02:58]} 9. O-O {[%clk 0:02:57]}  Bxb1 {[%clk 0:02:48]} 10. Rxb1 {[%clk 0:02:57]}  O-O {[%clk 0:02:49]} 11. Bf4 {[%clk 0:02:56]}  e6 {[%clk 0:02:49]} 12. Re1 {[%clk 0:02:56]}  Rc8 {[%clk 0:02:49]} 13. Ne5 {[%clk 0:02:49]}  Nxe5 {[%clk 0:02:48]} 14. Bxe5 {[%clk 0:02:50]}  Nd7 {[%clk 0:02:48]} 15. Bxg7 {[%clk 0:02:49]}  Kxg7 {[%clk 0:02:49]} 16. Bf1 {[%clk 0:02:49]}  a6 {[%clk 0:02:48]} 17. g3 {[%clk 0:02:41]}  Nb6 {[%clk 0:02:47]} 18. h4 {[%clk 0:02:41]}  h5 {[%clk 0:02:47]} 19. Bd3 {[%clk 0:02:33]}  Nc4 {[%clk 0:02:47]} 20. Bxc4 {[%clk 0:02:25]}  Rxc4 {[%clk 0:02:48]} 21. Re5 {[%clk 0:02:25]}  b5 {[%clk 0:02:46]} 22. a3 {[%clk 0:02:25]}  Qf6 {[%clk 0:02:44]} 23. Qe2 {[%clk 0:02:23]}  Rfc8 {[%clk 0:02:43]} 24. Re3 {[%clk 0:02:21]}  a5 {[%clk 0:02:42]} 25. Rf3 {[%clk 0:02:21]}  Qe7 {[%clk 0:02:43]} 26. Qe5+ {[%clk 0:02:21]}  Kg8 {[%clk 0:02:41]} 27. Re1 {[%clk 0:02:21]}  Qc7 {[%clk 0:02:38]} 28. Qf6 {[%clk 0:02:21]}  Qd8 {[%clk 0:02:37]} 29. Qe5 {[%clk 0:02:20]}  R4c6 {[%clk 0:02:31]} 30. Kg2 {[%clk 0:02:07]}  b4 {[%clk 0:02:28]} 31. axb4 {[%clk 0:02:07]}  axb4 {[%clk 0:02:29]} 32. cxb4 {[%clk 0:02:07]}  Qd6 {[%clk 0:02:24]} 33. Qg5 {[%clk 0:01:51]}  Qxb4 {[%clk 0:02:09]} 34. Re2 {[%clk 0:01:44]}  Qxd4 {[%clk 0:02:06]} 35. Rf6 {[%clk 0:01:40]}  Kg7 {[%clk 0:02:01]} 36. Rf4 {[%clk 0:01:39]}  Qa7 {[%clk 0:01:56]} 37. Qf6+ {[%clk 0:01:36]}  Kg8 {[%clk 0:01:56]} 38. g4 {[%clk 0:01:36]}  e5 {[%clk 0:01:26]} 39. Qxe5 {[%clk 0:01:11]}  Re6 {[%clk 0:01:26]} 40. Qxd5 {[%clk 0:01:02]}  Rxe2 {[%clk 0:01:24]} 41. gxh5 {[%clk 0:01:02]}  Qa8 {[%clk 0:01:22]} 42. Qxa8 {[%clk 0:01:01]}  Rxa8 {[%clk 0:01:23]} 43. hxg6 {[%clk 0:01:01]}  fxg6 {[%clk 0:01:24]} 44. Rg4 {[%clk 0:01:01]}  Kh7 {[%clk 0:01:23]} 45. Rg5 {[%clk 0:00:50]}  Rxb2 {[%clk 0:01:21]} 46. h5 {[%clk 0:00:51]}  gxh5 {[%clk 0:01:19]} 47. Rxh5+ {[%clk 0:00:52]}  Kg6 {[%clk 0:01:20]} 48. Rh1 {[%clk 0:00:46]}  Ra5 {[%clk 0:01:19]} 49. Rd1 {[%clk 0:00:44]}  Rg5+ {[%clk 0:01:19]} 50. Kf3 {[%clk 0:00:44]}  Rf5+ {[%clk 0:01:19]} 51. Ke4 {[%clk 0:00:44]}  Rb1 {[%clk 0:01:19]} 52. Rxb1 {[%clk 0:00:43]}  Rxf2 {[%clk 0:01:18]} 53. Rg1+ {[%clk 0:00:43]}  Kf6 {[%clk 0:01:18]} 54. Rg8 {[%clk 0:00:43]}  Kf7 {[%clk 0:01:16]} 55. Rg5 {[%clk 0:00:43]}  Rf6 {[%clk 0:01:16]} 56. Rc5 {[%clk 0:00:43]}  Re6+ {[%clk 0:01:15]} 57. Kf5 {[%clk 0:00:43]}  Rf6+ {[%clk 0:01:15]} 58. Kg5 {[%clk 0:00:44]}  Rg6+ {[%clk 0:01:16]} 59. Kh5 {[%clk 0:00:44]}  Rg1 {[%clk 0:01:15]} 60. Rc7+ {[%clk 0:00:44]}  Kf6 {[%clk 0:01:15]} 61. Kh4 {[%clk 0:00:44]}  Kf5 {[%clk 0:01:15]} 62. Kh3 {[%clk 0:00:44]}  Kf4 {[%clk 0:01:15]} 63. Kh2 {[%clk 0:00:44]}  Rg8 {[%clk 0:01:14]} 64. Rc4+ {[%clk 0:00:44]}  Kf3 {[%clk 0:01:14]} 65. Rc3+ {[%clk 0:00:44]}  Kf2 {[%clk 0:01:14]} 66. Rc2+ {[%clk 0:00:45]}  Kf3 {[%clk 0:01:15]} 67. Rc3+ {[%clk 0:00:43]}  Kf2 {[%clk 0:01:15]} 68. Rc2+ {[%clk 0:00:44]}  Kf3 {[%clk 0:01:16]} 69. Rc3+ {[%clk 0:00:44]} 1/2-1/2

[Event "December 5 Early 2023"]
[Site "https://www.chess.com"]
[Date "2023.12.05"]
[Round "10"]
[White "Zivic, Dragan"]
[Black "Krzywda, Andrzej"]
[Result "1-0"]
[Board "91"]
[TimeControl "180+1"]
[WhiteFideId "904740"]
[BlackFideId "1114565"]
[WhiteElo "2359"]
[BlackElo "2511"]
[WhiteTeam "SRB"]
[BlackTeam "POL"]
[WhiteClock "0:00:28"]
[BlackClock "0:00:05"]

1. c4 {[%clk 0:03:00]}  e6 {[%clk 0:02:59]} 2. Nc3 {[%clk 0:02:59]}  d5 {[%clk 0:03:00]} 3. cxd5 {[%clk 0:02:59]}  exd5 {[%clk 0:03:00]} 4. d4 {[%clk 0:03:00]}  Nf6 {[%clk 0:03:00]} 5. Bg5 {[%clk 0:03:00]}  c6 {[%clk 0:03:00]} 6. e3 {[%clk 0:02:59]}  h6 {[%clk 0:03:01]} 7. Bxf6 {[%clk 0:02:53]}  Qxf6 {[%clk 0:03:00]} 8. Nf3 {[%clk 0:02:53]}  Bd6 {[%clk 0:02:57]} 9. Bd3 {[%clk 0:02:53]}  O-O {[%clk 0:02:57]} 10. h3 {[%clk 0:02:44]}  Re8 {[%clk 0:02:46]} 11. Qc2 {[%clk 0:02:22]}  Nd7 {[%clk 0:02:39]} 12. O-O-O {[%clk 0:02:16]}  b5 {[%clk 0:02:34]} 13. Kb1 {[%clk 0:02:13]}  Nb6 {[%clk 0:02:32]} 14. e4 {[%clk 0:02:10]}  Bb4 {[%clk 0:01:55]} 15. e5 {[%clk 0:02:05]}  Qe7 {[%clk 0:01:50]} 16. g4 {[%clk 0:01:54]}  Nc4 {[%clk 0:01:46]} 17. Rdg1 {[%clk 0:01:42]}  g6 {[%clk 0:01:06]} 18. h4 {[%clk 0:01:17]}  Be6 {[%clk 0:00:47]} 19. Ka1 {[%clk 0:01:09]}  a5 {[%clk 0:00:44]} 20. g5 {[%clk 0:00:59]}  h5 {[%clk 0:00:44]} 21. Bxg6 {[%clk 0:00:58]}  fxg6 {[%clk 0:00:43]} 22. Qxg6+ {[%clk 0:00:58]}  Qg7 {[%clk 0:00:43]} 23. Qxh5 {[%clk 0:00:57]}  Rf8 {[%clk 0:00:23]} 24. g6 {[%clk 0:00:56]}  Rxf3 {[%clk 0:00:15]} 25. Qxf3 {[%clk 0:00:55]}  Rf8 {[%clk 0:00:16]} 26. Qg3 {[%clk 0:00:53]}  a4 {[%clk 0:00:14]} 27. a3 {[%clk 0:00:50]}  Bxc3 {[%clk 0:00:07]} 28. Qxc3 {[%clk 0:00:46]}  Rxf2 {[%clk 0:00:07]} 29. h5 {[%clk 0:00:46]}  Qh6 {[%clk 0:00:06]} 30. Rf1 {[%clk 0:00:38]}  Qf4 {[%clk 0:00:05]} 31. Rxf2 {[%clk 0:00:38]}  Qxf2 {[%clk 0:00:06]} 32. h6 {[%clk 0:00:35]}  Bf5 {[%clk 0:00:04]} 33. h7+ {[%clk 0:00:34]}  Kh8 {[%clk 0:00:04]} 34. g7+ {[%clk 0:00:34]}  Kxg7 {[%clk 0:00:04]} 35. h8=Q+ {[%clk 0:00:34]}  Kf7 {[%clk 0:00:04]} 36. Qf6+ {[%clk 0:00:33]}  Ke8 {[%clk 0:00:04]} 37. Rh8+ {[%clk 0:00:31]}  Kd7 {[%clk 0:00:05]} 38. Qf7# {[%clk 0:00:28]} 1-0

[Event "December 5 Early 2023"]
[Site "https://www.chess.com"]
[Date "2023.12.05"]
[Round "10"]
[White "Topalov, Aleksandar"]
[Black "Belov, Alexei"]
[Result "0-1"]
[Board "95"]
[TimeControl "180+1"]
[WhiteFideId "925659"]
[BlackFideId "4128206"]
[WhiteElo "2427"]
[BlackElo "2620"]
[WhiteTeam "SRB"]
[BlackTeam "RUS"]
[WhiteClock "0:00:00"]
[BlackClock "0:00:17"]

1. b3 {[%clk 0:03:00]}  d5 {[%clk 0:02:59]} 2. Bb2 {[%clk 0:03:01]}  Nf6 {[%clk 0:02:59]} 3. Nf3 {[%clk 0:02:55]}  e6 {[%clk 0:02:59]} 4. e3 {[%clk 0:02:54]}  Be7 {[%clk 0:02:59]} 5. d4 {[%clk 0:02:55]}  O-O {[%clk 0:02:59]} 6. Nbd2 {[%clk 0:02:55]}  Nbd7 {[%clk 0:02:59]} 7. Bd3 {[%clk 0:02:55]}  c5 {[%clk 0:02:59]} 8. O-O {[%clk 0:02:55]}  b6 {[%clk 0:02:59]} 9. Ne5 {[%clk 0:02:55]}  Bb7 {[%clk 0:02:57]} 10. f4 {[%clk 0:02:55]}  Ne4 {[%clk 0:02:55]} 11. Rf3 {[%clk 0:02:27]}  f6 {[%clk 0:02:46]} 12. Nxd7 {[%clk 0:02:21]}  Qxd7 {[%clk 0:02:47]} 13. Rh3 {[%clk 0:02:15]}  g6 {[%clk 0:02:36]} 14. Rf3 {[%clk 0:02:03]}  Rac8 {[%clk 0:02:33]} 15. dxc5 {[%clk 0:01:58]}  Bxc5 {[%clk 0:02:26]} 16. Qe2 {[%clk 0:01:51]}  Qe7 {[%clk 0:02:19]} 17. Rff1 {[%clk 0:01:46]}  Nxd2 {[%clk 0:02:02]} 18. Qxd2 {[%clk 0:01:46]}  e5 {[%clk 0:02:03]} 19. fxe5 {[%clk 0:01:38]}  fxe5 {[%clk 0:02:03]} 20. Rxf8+ {[%clk 0:01:36]}  Rxf8 {[%clk 0:02:02]} 21. Rf1 {[%clk 0:01:36]}  Rxf1+ {[%clk 0:01:50]} 22. Bxf1 {[%clk 0:01:36]}  Qg5 {[%clk 0:01:45]} 23. Bc1 {[%clk 0:01:30]}  Kg7 {[%clk 0:01:22]} 24. a3 {[%clk 0:01:28]}  d4 {[%clk 0:01:03]} 25. exd4 {[%clk 0:01:20]}  Bxd4+ {[%clk 0:01:03]} 26. Kh1 {[%clk 0:01:18]}  Qf5 {[%clk 0:01:00]} 27. Bc4 {[%clk 0:01:00]}  Bd5 {[%clk 0:00:50]} 28. Ba6 {[%clk 0:00:48]}  Qg4 {[%clk 0:00:43]} 29. c3 {[%clk 0:00:34]}  Be3 {[%clk 0:00:31]} 30. Qxd5 {[%clk 0:00:24]}  Bxc1 {[%clk 0:00:31]} 31. Qxe5+ {[%clk 0:00:24]}  Kh6 {[%clk 0:00:30]} 32. Be2 {[%clk 0:00:19]}  Qg5 {[%clk 0:00:26]} 33. Qxg5+ {[%clk 0:00:17]}  Kxg5 {[%clk 0:00:26]} 34. g3 {[%clk 0:00:16]}  Bxa3 {[%clk 0:00:25]} 35. Kg2 {[%clk 0:00:15]}  Bb2 {[%clk 0:00:25]} 36. c4 {[%clk 0:00:15]}  Kf5 {[%clk 0:00:26]} 37. Kf3 {[%clk 0:00:15]}  Ke5 {[%clk 0:00:26]} 38. Ke3 {[%clk 0:00:15]}  Bd4+ {[%clk 0:00:26]} 39. Kf3 {[%clk 0:00:15]}  a5 {[%clk 0:00:26]} 40. h3 {[%clk 0:00:13]}  Bc5 {[%clk 0:00:26]} 41. Kg4 {[%clk 0:00:11]}  Kd4 {[%clk 0:00:25]} 42. Bd1 {[%clk 0:00:11]}  Ke3 {[%clk 0:00:23]} 43. Kg5 {[%clk 0:00:10]}  Kf2 {[%clk 0:00:22]} 44. Kh6 {[%clk 0:00:09]}  Kxg3 {[%clk 0:00:20]} 45. Kxh7 {[%clk 0:00:10]}  g5 {[%clk 0:00:20]} 46. Bg4 {[%clk 0:00:09]}  Kf2 {[%clk 0:00:18]} 47. Kg6 {[%clk 0:00:09]}  Be3 {[%clk 0:00:18]} 48. Kf5 {[%clk 0:00:08]}  Ke1 {[%clk 0:00:18]} 49. Ke6 {[%clk 0:00:09]}  Kd2 {[%clk 0:00:18]} 50. Kd5 {[%clk 0:00:09]}  Kc2 {[%clk 0:00:18]} 51. Bd7 {[%clk 0:00:04]}  Kxb3 {[%clk 0:00:17]} 52. c5 {[%clk 0:00:00]}  Bxc5 {[%clk 0:00:17]} 0-1

[Event "December 5 Early 2023"]
[Site "https://www.chess.com"]
[Date "2023.12.05"]
[Round "10"]
[White "Rogov, Matfey"]
[Black "Balla, Tamas-Kristof"]
[Result "1-0"]
[Board "98"]
[TimeControl "180+1"]
[WhiteFideId "44191308"]
[BlackFideId "1208497"]
[WhiteElo "2524"]
[BlackElo "2416"]
[WhiteTeam "RUS"]
[BlackTeam "ROU"]
[WhiteClock "0:01:09"]
[BlackClock "0:00:17"]

1. e4 {[%clk 0:03:00]}  c5 {[%clk 0:02:59]} 2. Nf3 {[%clk 0:03:00]}  Nc6 {[%clk 0:02:57]} 3. b4 {[%clk 0:02:59]}  cxb4 {[%clk 0:02:56]} 4. d4 {[%clk 0:03:00]}  d5 {[%clk 0:02:55]} 5. exd5 {[%clk 0:03:01]}  Qxd5 {[%clk 0:02:55]} 6. c4 {[%clk 0:03:02]}  bxc3 {[%clk 0:02:56]} 7. Nxc3 {[%clk 0:03:02]}  Qa5 {[%clk 0:02:56]} 8. Rb1 {[%clk 0:03:03]}  e6 {[%clk 0:02:46]} 9. Bd2 {[%clk 0:03:02]}  Bb4 {[%clk 0:02:46]} 10. Rxb4 {[%clk 0:03:03]}  Qxb4 {[%clk 0:02:29]} 11. d5 {[%clk 0:03:03]}  Nd4 {[%clk 0:01:46]} 12. Nb5 {[%clk 0:02:21]}  Nxf3+ {[%clk 0:01:41]} 13. gxf3 {[%clk 0:02:22]}  Qc5 {[%clk 0:01:27]} 14. Be3 {[%clk 0:02:22]}  Qb4+ {[%clk 0:01:27]} 15. Bd2 {[%clk 0:02:23]}  Qc5 {[%clk 0:01:27]} 16. a3 {[%clk 0:01:50]}  a5 {[%clk 0:00:58]} 17. Be3 {[%clk 0:01:48]}  Qe7 {[%clk 0:00:52]} 18. d6 {[%clk 0:01:47]}  Qh4 {[%clk 0:00:47]} 19. Nc7+ {[%clk 0:01:42]}  Kf8 {[%clk 0:00:47]} 20. Nxa8 {[%clk 0:01:28]}  Nf6 {[%clk 0:00:46]} 21. d7 {[%clk 0:01:19]}  Bxd7 {[%clk 0:00:42]} 22. Qd6+ {[%clk 0:01:18]}  Kg8 {[%clk 0:00:40]} 23. Bc5 {[%clk 0:01:08]}  h6 {[%clk 0:00:17]} 24. Bd3 {[%clk 0:01:09]} 1-0

[Event "December 5 Early 2023"]
[Site "https://www.chess.com"]
[Date "2023.12.05"]
[Round "10"]
[White "Vakhidov, Shahzod"]
[Black "Marchesich, Giovanni"]
[Result "1-0"]
[Board "99"]
[TimeControl "180+1"]
[WhiteFideId "14205270"]
[BlackFideId "2824790"]
[WhiteElo "2517"]
[BlackElo "2407"]
[WhiteTeam "UZB"]
[BlackTeam "ITA"]
[WhiteClock "0:00:41"]
[BlackClock "0:00:22"]

1. d4 {[%clk 0:03:00]}  Nf6 {[%clk 0:02:56]} 2. Nf3 {[%clk 0:03:01]}  c5 {[%clk 0:02:55]} 3. d5 {[%clk 0:03:00]}  b5 {[%clk 0:02:55]} 4. g3 {[%clk 0:03:00]}  Bb7 {[%clk 0:02:49]} 5. c4 {[%clk 0:03:00]}  bxc4 {[%clk 0:02:48]} 6. Nc3 {[%clk 0:03:00]}  g6 {[%clk 0:02:47]} 7. Bg2 {[%clk 0:02:59]}  Bg7 {[%clk 0:02:47]} 8. O-O {[%clk 0:02:57]}  d6 {[%clk 0:02:47]} 9. Nd2 {[%clk 0:02:54]}  Nbd7 {[%clk 0:02:45]} 10. Nxc4 {[%clk 0:02:54]}  O-O {[%clk 0:02:44]} 11. a4 {[%clk 0:02:46]}  Rb8 {[%clk 0:02:42]} 12. Qc2 {[%clk 0:02:29]}  Nb6 {[%clk 0:02:37]} 13. Na5 {[%clk 0:02:29]}  Qc7 {[%clk 0:02:23]} 14. Nb5 {[%clk 0:02:22]}  Qd7 {[%clk 0:02:19]} 15. Nc6 {[%clk 0:02:20]}  Ra8 {[%clk 0:02:13]} 16. e4 {[%clk 0:02:12]}  a6 {[%clk 0:02:02]} 17. Nc3 {[%clk 0:02:11]}  Ng4 {[%clk 0:01:52]} 18. Bg5 {[%clk 0:02:06]}  Rfe8 {[%clk 0:01:48]} 19. a5 {[%clk 0:02:02]}  Nc4 {[%clk 0:01:46]} 20. Na4 {[%clk 0:02:01]}  Nce5 {[%clk 0:01:17]} 21. Nb6 {[%clk 0:01:59]}  Qc7 {[%clk 0:01:17]} 22. Nxa8 {[%clk 0:01:55]}  Bxa8 {[%clk 0:01:18]} 23. Nxe5 {[%clk 0:01:46]}  Nxe5 {[%clk 0:01:18]} 24. Bd2 {[%clk 0:01:31]}  Rb8 {[%clk 0:01:15]} 25. Bc3 {[%clk 0:01:31]}  e6 {[%clk 0:01:08]} 26. h3 {[%clk 0:01:30]}  Qb7 {[%clk 0:00:56]} 27. Rfd1 {[%clk 0:01:17]}  exd5 {[%clk 0:00:54]} 28. exd5 {[%clk 0:01:15]}  Nd7 {[%clk 0:00:54]} 29. Bxg7 {[%clk 0:01:10]}  Kxg7 {[%clk 0:00:55]} 30. Qc3+ {[%clk 0:01:11]}  Nf6 {[%clk 0:00:55]} 31. Bf1 {[%clk 0:01:04]}  Qxb2 {[%clk 0:00:47]} 32. Qxb2 {[%clk 0:01:03]}  Rxb2 {[%clk 0:00:48]} 33. Bxa6 {[%clk 0:01:03]}  Bxd5 {[%clk 0:00:41]} 34. Bf1 {[%clk 0:01:01]}  Rb8 {[%clk 0:00:33]} 35. a6 {[%clk 0:01:00]}  Rd8 {[%clk 0:00:33]} 36. Bg2 {[%clk 0:00:51]}  Bxg2 {[%clk 0:00:33]} 37. Kxg2 {[%clk 0:00:52]}  d5 {[%clk 0:00:33]} 38. Rdb1 {[%clk 0:00:43]}  Nd7 {[%clk 0:00:31]} 39. Rb7 {[%clk 0:00:42]}  c4 {[%clk 0:00:28]} 40. a7 {[%clk 0:00:42]}  Nc5 {[%clk 0:00:22]} 41. Rb8 {[%clk 0:00:41]} 1-0